fUSD/lending_fUSD_20250422
["ID","MTS","AMOUNT","RATE_DAILY","PERIOD"]
[358595145,1745298639513,-298.18574465,0.0001999,2]
[358595146,1745298639523,-572.36,0.0001999,2]
[358595147,1745298639532,-572.36,0.0001999,2]
[358595148,1745298639543,-572.36,0.0001999,2]
[358595149,1745298639552,-572.36,0.0001999,2]
[358595150,1745298639561,-572.36,0.0001999,2]
[358595151,1745298639570,-572.36,0.0001999,2]
[358595152,1745298639580,-572.36,0.0001999,2]
[358595153,1745298639589,-357.25013583,0.00019999,2]
[358595154,1745298639598,-108575.61983853,0.0002,2]
[358595155,1745298639608,-22072.58188852,0.0002,4]
[358595156,1745298639617,-1231876.55915618,0.0002,2]
[358595170,1745298639883,-2948479.49514855,0.0002,2]
[358595172,1745298639892,-250.0,0.0002,2]
[358595174,1745298639901,-250.0,0.0002,2]
[358595175,1745298639911,-250.0,0.0002,2]
[358595177,1745298639920,-250.0,0.0002,2]
[358595179,1745298639929,-250.0,0.0002,2]
[358595181,1745298639939,-250.0,0.0002,2]
[358595183,1745298639949,-250.0,0.0002,2]
[358595185,1745298639958,-250.0,0.0002,2]
[358595187,1745298639967,-250.0,0.0002,2]
[358595189,1745298639977,-250.0,0.0002,2]
[358595191,1745298639987,-289.34,0.0002,2]
[358595193,1745298639995,-150.0,0.0002,2]
[358595195,1745298640005,-500.0,0.0002,2]
[358595196,1745298640014,-433.0,0.0002,2]
[358595198,1745298640023,-150.0,0.0002,2]
[358595200,1745298640032,-212.68335089,0.0002,2]
[358595202,1745298640042,-150.0,0.0002,2]
[358595204,1745298640052,-150.0,0.0002,2]
[358595206,1745298640062,-500.0,0.0002,2]
[358595208,1745298640071,-500.0,0.0002,2]
[358595210,1745298640080,-237.28,0.00020086,2]
[358595212,1745298640090,-1519.2889041,0.00020357,2]
[358595215,1745298640113,-8554.08305623,0.00020357,2]
[358595217,1745298640122,-194.15871911,0.00020446,2]
[358595219,1745298640134,-250.0,0.00020463,2]
[358595221,1745298640144,-1947.58,0.00020501,2]
[358595223,1745298640153,-500.0,0.00020677,2]
[358595225,1745298640163,-250.0,0.00020908,2]
[358595227,1745298640172,-250.0,0.00020908,2]
[358595229,1745298640181,-10073.37196033,0.00020914,2]
[358595231,1745298640191,-250.0,0.00020941,2]
[358595233,1745298640200,-1680.0,0.00020951,2]
[358595235,1745298640210,-194.15871911,0.00020992,2]
[358595237,1745298640220,-250.0,0.00021,2]
[358595239,1745298640229,-353.43,0.0002105,2]
[358595241,1745298640239,-1029.26,0.00021121,2]
[358595243,1745298640248,-237.28,0.00021143,2]
[358595246,1745298640257,-37851.13,0.00021311,2]
[358595248,1745298640267,-200.0,0.00021338,2]
[358595250,1745298640276,-500.0,0.00021343,2]
[358595252,1745298640285,-500.0,0.00021343,2]
[358595254,1745298640295,-500.0,0.00021343,2]
[358595256,1745298640305,-500.0,0.00021343,2]
[358595258,1745298640315,-500.0,0.00021343,2]
[358595260,1745298640324,-500.0,0.00021343,2]
[358595262,1745298640333,-150.0,0.00021343,2]
[358595264,1745298640342,-156.66705014,0.00021343,2]
[358595266,1745298640352,-500.0,0.00021343,2]
[358595268,1745298640362,-500.0,0.00021343,2]
[358595270,1745298640371,-150.0,0.00021343,2]
[358595272,1745298640382,-150.0,0.00021343,2]
[358595274,1745298640391,-150.0,0.00021343,2]
[358595276,1745298640400,-509.05,0.00021351,2]
[358595277,1745298640409,-1000.0,0.00021354,2]
[358595279,1745298640419,-1571.23,0.0002137,2]
[358595281,1745298640428,-500.0,0.0002137,2]
[358595282,1745298640437,-433.0,0.0002137,2]
[358595283,1745298640446,-212.29982244,0.0002137,2]
[358595284,1745298640455,-150.0,0.0002137,2]
[358595285,1745298640464,-150.0,0.0002137,2]
[358595286,1745298640473,-500.0,0.0002137,2]
[358595287,1745298640482,-500.0,0.0002137,2]
[358595288,1745298640491,-3572.13159735,0.00021471,2]
[358595289,1745298640507,-399.18246067,0.00021471,2]
[358595290,1745298640518,-6102.05790231,0.00021471,2]
[358595291,1745298640527,-194.15871911,0.00021538,2]
[358595293,1745298640537,-150.0,0.00021547,2]
[358595295,1745298640547,-159.91,0.00021697,2]
[358595298,1745298640557,-4119.71,0.00021757,2]
[358595300,1745298640566,-11593.58300332,0.00021757,2]
[358595302,1745298640578,-511.6331188,0.00021757,2]
[358595304,1745298640590,-2652.064266,0.00021757,2]
[358595306,1745298640603,-1024.4,0.00021757,2]
[358595715,1745298644842,-2883.79961188,0.00021757,2]
[358595716,1745298644852,-2040.44,0.00021757,2]
[358595718,1745298644861,-150.0,0.00021779,2]
[358595720,1745298644871,-153.65,0.00021798,2]
[358595721,1745298644880,-276.57,0.00021918,2]
[358595723,1745298644890,-154.27852209,0.00021918,2]
[358595725,1745298644899,-166.66,0.00022007,2]
[358595726,1745298644908,-10073.37196033,0.00022028,2]
[358595728,1745298644917,-194.15871911,0.00022084,2]
[358595730,1745298644927,-431.74073813,0.0002217,2]
[358595731,1745298644936,-237.28,0.000222,2]
[358595733,1745298644946,-2319.18,0.0002228,2]
[358595735,1745298644955,-10073.37196033,0.00022585,2]
[358595736,1745298644964,-194.15871911,0.00022629,2]
[358595738,1745298644973,-500.0,0.00022713,2]
[358595740,1745298644982,-500.0,0.00022713,2]
[358595741,1745298644991,-500.0,0.00022713,2]
[358595743,1745298645000,-500.0,0.00022713,2]
[358595745,1745298645009,-500.0,0.00022713,2]
[358595746,1745298645019,-304.42175369,0.00022713,2]
[358595748,1745298645028,-150.78111852,0.00022713,2]
[358595750,1745298645037,-500.0,0.00022713,2]
[358595751,1745298645047,-302.45581897,0.00022713,2]
[358595753,1745298645060,-151.69652496,0.00022713,2]
[358595755,1745298645070,-151.03359555,0.00022713,2]
[358595756,1745298645080,-151.08550868,0.00022713,2]
[358595758,1745298645090,-166.66,0.00022734,2]
[358595759,1745298645101,-500.0,0.0002274,2]
[358595761,1745298645111,-433.0,0.0002274,2]
[358595763,1745298645120,-150.0,0.0002274,2]
[358595765,1745298645129,-223.05850223,0.0002274,2]
[358595766,1745298645140,-500.0,0.0002274,2]
[358595767,1745298645150,-500.0,0.0002274,2]
[358595768,1745298645159,-1947.58,0.00022765,2]
[358595769,1745298645168,-300.0,0.00022874,2]
[358595770,1745298645177,-2351.0,0.00022944,2]
[358595771,1745298645186,-5827.0005791,0.00023,15]
[358595772,1745298645195,-300.0,0.00023,2]
[358595773,1745298645204,-200.0,0.00023,2]
[358595774,1745298645213,-49482.4280873,0.00023027,2]
[358595775,1745298645223,-6049.1701846,0.00023027,2]
[358595777,1745298645232,-3096.8947208,0.00023027,2]
[358595778,1745298645241,-10073.37196033,0.00023142,2]
[358595780,1745298645251,-194.15871911,0.00023175,2]
[358595782,1745298645260,-237.28,0.00023258,2]
[358595784,1745298645269,-166.66,0.0002346,2]
[358595787,1745298645279,-10073.37196033,0.00023699,2]
[358595793,1745298645459,-194.15871911,0.00023721,2]
[358595795,1745298645471,-1000.0,0.00023726,2]
[358595797,1745298645480,-397.82,0.00023836,2]
[358595799,1745298645490,-500.0,0.00024083,2]
[358595801,1745298645499,-500.0,0.00024083,2]
[358595803,1745298645508,-354.31749824,0.00024083,2]
[358595805,1745298645518,-500.0,0.00024083,2]
[358595807,1745298645527,-206.50217652,0.00024083,2]
[358595809,1745298645537,-500.0,0.00024083,2]
[358595811,1745298645546,-500.0,0.0002411,2]
[358595813,1745298645555,-433.0,0.0002411,2]
[358595815,1745298645565,-150.0,0.0002411,2]
[358595817,1745298645575,-500.0,0.0002411,2]
[358595819,1745298645584,-500.0,0.0002411,2]
[358595821,1745298645593,-166.66,0.00024187,2]
[358595823,1745298645602,-300.0,0.00024244,2]
[358595825,1745298645612,-10073.37196033,0.00024256,2]
[358595827,1745298645621,-194.15871911,0.00024267,2]
[358595829,1745298645630,-237.28,0.00024315,2]
[358595831,1745298645640,-289.40138752,0.00024799,2]
[358595833,1745298645649,-300.0,0.00024799,10]
[358595835,1745298645658,-500.0,0.00024799,2]
[358595837,1745298645667,-3305.20142334,0.000248,5]
[358595839,1745298645677,-253539.604394,0.000248,3]
[358595841,1745298645686,-194.15871911,0.00024813,2]
[358595843,1745298645695,-10073.37196033,0.00024813,2]
[358595844,1745298645704,-500.0,0.00024899,2]
[358595846,1745298645713,-456505.88902,0.000249,3]
[358595848,1745298645722,-166.66,0.00024913,2]
[358595850,1745298645731,-350.0,0.00025,2]
[358595852,1745298645741,-1947.58,0.00025029,2]
[358595855,1745298645750,-289.0,0.00025127,2]
[358595856,1745298645759,-1000.0,0.00025252,2]
[358595858,1745298645768,-1000.0,0.00025252,2]
[358595860,1745298645777,-280.0,0.000253,10]
[358595862,1745298645787,-276.57,0.00025342,2]
[358595864,1745298645796,-650.96682297,0.00025352,2]
[358595866,1745298645805,-1000.0,0.00025352,2]
[358595868,1745298645814,-237.28,0.00025372,2]
[358595870,1745298645823,-632.4404279,0.00025452,2]
[358595872,1745298645832,-1000.0,0.00025452,2]
[358595874,1745298645841,-1000.0,0.00025452,2]
[358595876,1745298645850,-500.0,0.00025452,2]
[358595878,1745298645859,-1066.87525946,0.00025452,2]
[358595880,1745298645868,-500.0,0.00025452,2]
[358595882,1745298645877,-500.0,0.00025452,2]
[358595884,1745298645886,-500.0,0.00025452,2]
[358595886,1745298645895,-500.0,0.00025452,2]
[358595888,1745298645905,-500.0,0.00025479,2]
[358595890,1745298645914,-433.0,0.00025479,2]
[358595892,1745298645924,-150.0,0.00025479,2]
[358595894,1745298645933,-500.0,0.00025479,2]
[358595896,1745298645942,-500.0,0.00025479,2]
[358595898,1745298645952,-166.66,0.00025639,2]
[358595900,1745298645961,-500.0,0.00025781,2]
[358595902,1745298645970,-578.50370442,0.0002599,2]
[358595904,1745298645979,-1000.0,0.00026099,2]
[358595906,1745298645989,-237.28,0.00026429,2]
[358595909,1745298645998,-217.03998963,0.0002643,2]
[358595911,1745298646008,-4068.35,0.00026785,2]
[358595913,1745298646017,-500.0,0.00026822,2]
[358595915,1745298646027,-500.0,0.00026822,2]
[358595917,1745298646036,-500.0,0.00026822,2]
[358595919,1745298646045,-500.0,0.00026822,2]
[358595922,1745298646060,-500.0,0.00026849,2]
[358595924,1745298646070,-433.0,0.00026849,2]
[358595925,1745298646079,-202.70858368,0.00026849,2]
[358595927,1745298646088,-500.0,0.00026849,2]
[358595929,1745298646098,-500.0,0.00026849,2]
[358595931,1745298646107,-250.0,0.00027,2]
[358595933,1745298646117,-1409.98743003,0.00027,14]
[358595935,1745298646128,-997.62386644,0.00027,2]
[358595937,1745298646137,-159.7154165,0.00027,2]
[358595939,1745298646147,-400.0,0.00027,2]
[358595941,1745298646156,-2466.97,0.00027123,2]
[358595943,1745298646165,-1947.58,0.00027293,2]
[358595945,1745298646175,-4374.06230797,0.00027397,2]
[358595947,1745298646184,-500.0,0.00027397,2]
[358595949,1745298646194,-154.59,0.00027397,2]
[358595951,1745298646203,-622.29,0.00027397,2]
[358595953,1745298646213,-237.28,0.00027486,2]
[358595955,1745298646223,-2280.17024535,0.000276,7]
[358595957,1745298646232,-2280.17024533,0.000276,7]
[358595959,1745298646241,-2280.17024533,0.000276,7]
[358595961,1745298646250,-2280.17024533,0.000276,7]
[358595963,1745298646260,-2280.17024533,0.000276,7]
[358595965,1745298646269,-2280.17024533,0.000276,7]
[358595967,1745298646279,-391.0,0.0002783,15]
[358595968,1745298646290,-276.81,0.00028,2]
[358595971,1745298646303,-500.0,0.00028192,2]
[358595972,1745298646313,-500.0,0.00028192,2]
[358595974,1745298646322,-457.75242315,0.00028192,2]
[358595976,1745298646333,-500.0,0.00028192,2]
[358595978,1745298646342,-500.0,0.00028219,2]
[358595980,1745298646352,-433.0,0.00028219,2]
[358595982,1745298646361,-500.0,0.00028219,2]
[358595984,1745298646370,-500.0,0.00028219,2]
[358595986,1745298646379,-154.59,0.00028253,2]
[358595988,1745298646389,-1000.0,0.00028472,2]
[358595990,1745298646399,-152.97957913,0.000285,7]
[358595992,1745298646408,-601.81290088,0.000285,2]
[358595994,1745298646417,-338.7707963,0.000285,2]
[358595996,1745298646426,-237.28,0.00028543,2]
[358595998,1745298646436,-2280.17024533,0.0002859,8]
[358596000,1745298646445,-506.00427527,0.00028767,2]
[358596002,1745298646455,-276.57,0.00028767,2]
[358596004,1745298646464,-622.29,0.00028767,2]
[358596006,1745298646473,-386.04582783,0.00029,6]
[358596008,1745298646483,-259.93505289,0.00029,2]
[358596010,1745298646492,-450.0,0.00029,2]
[358596012,1745298646502,-154.59,0.0002911,2]
[358596014,1745298646511,-1947.58,0.00029557,2]
[358596016,1745298646521,-500.0,0.00029562,2]
[358596018,1745298646531,-500.0,0.00029562,2]
[358596020,1745298646541,-500.0,0.00029589,2]
[358596022,1745298646552,-433.0,0.00029589,2]
[358596024,1745298646562,-500.0,0.00029589,2]
[358596026,1745298646572,-500.0,0.00029589,2]
[358596028,1745298646581,-154.59,0.00029966,2]
[358596030,1745298646590,-228.89683417,0.0002999,2]
[358596032,1745298646600,-339.39313935,0.0003,2]
[358596034,1745298646609,-1002.53807824,0.0003,5]
[358596036,1745298646618,-213.0,0.0003,2]
[358596038,1745298646630,-151.98,0.0003,2]
[358596040,1745298646640,-151.98,0.0003,2]
[358596042,1745298646649,-151.98,0.0003,2]
[358596044,1745298646658,-151.98,0.0003,2]
[358596046,1745298646668,-151.98,0.0003,2]
[358596048,1745298646677,-151.98,0.0003,2]
[358596050,1745298646686,-151.98,0.0003,2]
[358596052,1745298646696,-151.98,0.0003,2]
[358596054,1745298646705,-151.98,0.0003,2]
[358596056,1745298646715,-151.98,0.0003,2]
[358596058,1745298646724,-151.98,0.0003,2]
[358596060,1745298646733,-151.98,0.0003,2]
[358596062,1745298646743,-151.98,0.0003,2]
[358596064,1745298646752,-151.98,0.0003,2]
[358596066,1745298646762,-151.98,0.0003,2]
[358596068,1745298646771,-151.98,0.0003,2]
[358596070,1745298646780,-151.98,0.0003,2]
[358596072,1745298646790,-151.98,0.0003,2]
[358596073,1745298646799,-151.98,0.0003,2]
[358596074,1745298646808,-151.98,0.0003,2]
[358596075,1745298646817,-151.98,0.0003,2]
[358596076,1745298646826,-151.98,0.0003,2]
[358596077,1745298646835,-151.98,0.0003,2]
[358596078,1745298646844,-151.98,0.0003,2]
[358596079,1745298646853,-151.98,0.0003,2]
[358596080,1745298646862,-151.98,0.0003,2]
[358596082,1745298646871,-151.98,0.0003,2]
[358596084,1745298646881,-151.98,0.0003,2]
[358596086,1745298646890,-151.98,0.0003,2]
[358596088,1745298646900,-151.98,0.0003,2]
[358596089,1745298646909,-151.98,0.0003,2]
[358596092,1745298646919,-151.98,0.0003,2]
[358596094,1745298646929,-151.98,0.0003,2]
[358596096,1745298646938,-151.98,0.0003,2]
[358596098,1745298646947,-151.98,0.0003,2]
[358596100,1745298646956,-151.98,0.0003,2]
[358596102,1745298646966,-2280.17024533,0.00030038,9]
[358596104,1745298646975,-802.34,0.0003011,2]
[358596106,1745298646985,-622.29,0.00030137,2]
[358596108,1745298646994,-154.59,0.00030822,2]
[358596110,1745298647003,-507.93987288,0.00030932,2]
[358596112,1745298647013,-512.26368687,0.00030932,2]
[358596114,1745298647022,-500.0,0.00030959,2]
[358596116,1745298647031,-433.0,0.00030959,2]
[358596118,1745298647040,-506.78700805,0.00030959,2]
[358596119,1745298647051,-208.89671936,0.00030959,2]
[358596121,1745298647065,-328.24715272,0.00031,5]
[358596123,1745298647075,-500.0,0.00031,2]
[358596126,1745298647084,-2280.17024533,0.00031486,10]
[358596127,1745298647094,-622.29,0.00031507,2]
[358596129,1745298647104,-154.59,0.00031678,2]
[358596131,1745298647113,-1947.58,0.00031821,2]
[358596133,1745298647122,-900.0,0.00032,15]
[358596135,1745298647134,-276.57,0.00032192,2]
[358596137,1745298647143,-281.0,0.0003231,5]
[358596139,1745298647152,-500.0,0.00032329,2]
[358596141,1745298647161,-433.0,0.00032329,2]
[358596143,1745298647171,-154.59,0.00032534,2]
[358596145,1745298647180,-622.29,0.00032877,2]
[358596147,1745298647189,-500.0,0.00032877,3]
[358596149,1745298647199,-299.96370574,0.00032903,2]
[358596152,1745298647209,-184.2356829,0.00032903,2]
[358596154,1745298647219,-2280.17024533,0.00032934,10]
[358596156,1745298647228,-217.03998963,0.00032959,2]
[358596158,1745298647238,-550.0,0.00033,2]
[358596160,1745298647247,-213.0,0.00033,2]
[358596162,1745298647257,-189.38,0.00033083,2]
[358596163,1745298647267,-216.50751837,0.000331,2]
[358596166,1745298647277,-154.59,0.0003339,2]
[358596168,1745298647287,-1168.61591014,0.000335,2]
[358596169,1745298647296,-500.0,0.00033699,2]
[358596171,1745298647307,-433.0,0.00033699,2]
[358596173,1745298647316,-1947.58,0.00034085,2]
[358596175,1745298647325,-154.59,0.00034247,2]
[358596177,1745298647335,-992.055,0.00034347,2]
[358596179,1745298647345,-1333.0,0.00034347,2]
[358596181,1745298647354,-2057.0,0.00034347,2]
[358596183,1745298647363,-799.999,0.00034347,2]
[358596185,1745298647372,-547.0,0.00034347,2]
[358596187,1745298647381,-1443.0,0.00034347,2]
[358596189,1745298647390,-1284.0,0.00034347,2]
[358596191,1745298647399,-909.0,0.00034347,2]
[358596193,1745298647408,-4164.0,0.00034347,2]
[358596195,1745298647417,-577.0,0.00034347,2]
[358596197,1745298647426,-3981.0,0.00034347,2]
[358596200,1745298647436,-294.481,0.00034347,2]
[358596202,1745298647445,-161.519,0.00034347,2]
[358596204,1745298647454,-2280.17024533,0.00034383,11]
[358596205,1745298647464,-189.082,0.00034424,2]
[358596207,1745298647473,-150.738,0.00034424,2]
[358596209,1745298647482,-164.784,0.00034424,2]
[358596212,1745298647491,-150.337,0.00034424,2]
[358596214,1745298647500,-150.0,0.00034424,2]
[358596215,1745298647510,-150.0,0.00034548,10]
[358596217,1745298647519,-1195.47594654,0.00035,2]
[358596219,1745298647528,-227.60396705,0.00035,2]
[358596221,1745298647538,-600.0,0.00035,2]
[358596223,1745298647548,-500.0,0.00035068,2]
[358596225,1745298647557,-433.0,0.00035068,2]
[358596227,1745298647566,-397.82,0.00035068,2]
[358596229,1745298647575,-154.59,0.00035103,2]
[358596231,1745298647585,-1500.0,0.00035271,5]
[358596233,1745298647594,-1509.46951054,0.00035471,5]
[358596235,1745298647603,-613.91512508,0.00035471,5]
[358596237,1745298647612,-276.57,0.00035616,2]
[358596239,1745298647623,-2280.17024533,0.00035831,12]
[358596241,1745298647632,-17831.01439942,0.0003593,7]
[358596243,1745298647641,-154.59,0.00035959,2]
[358596245,1745298647650,-1947.58,0.00036349,2]
[358596247,1745298647659,-500.0,0.00036438,2]
[358596249,1745298647668,-433.0,0.00036438,2]
[358596251,1745298647678,-154.59,0.00036815,2]
[358596253,1745298647688,-1000.0,0.00036986,3]
[358596255,1745298647697,-969.91,0.00037,2]
[358596257,1745298647706,-650.0,0.00037,2]
[358596258,1745298647716,-2280.17024533,0.00037279,13]
[358596259,1745298647725,-916.0,0.00037347,2]
[358596260,1745298647734,-1333.0,0.00037347,2]
[358596261,1745298647743,-2057.0,0.00037347,2]
[358596262,1745298647753,-795.0,0.00037347,2]
[358596263,1745298647762,-547.0,0.00037347,2]
[358596264,1745298647771,-1443.0,0.00037347,2]
[358596265,1745298647780,-1284.0,0.00037347,2]
[358596266,1745298647789,-909.0,0.00037347,2]
[358596267,1745298647799,-4164.0,0.00037347,2]
[358596268,1745298647808,-577.0,0.00037347,2]
[358596270,1745298647817,-852.611,0.00037347,2]
[358596272,1745298647827,-152.0,0.00037347,2]
[358596273,1745298647836,-152.0,0.00037347,2]
[358596274,1745298647845,-150.0,0.00037424,2]
[358596275,1745298647855,-2636.59326208,0.0003749,2]
[358596276,1745298647864,-2454.51178221,0.0003759,2]
[358596277,1745298647873,-154.59,0.00037671,2]
[358596278,1745298647882,-433.0,0.00037808,2]
[358596279,1745298647891,-6950.63,0.000384,14]
[358596280,1745298647901,-154.59,0.00038527,2]
[358596281,1745298647910,-203.97,0.000386,14]
[358596282,1745298647919,-1947.58,0.00038613,2]
[358596283,1745298647929,-2280.17024533,0.00038728,14]
[358596284,1745298647938,-700.0,0.00039,2]
[358596285,1745298647948,-433.0,0.00039178,2]
[358596286,1745298647957,-500.0,0.00039342,2]
[358596287,1745298647967,-500.0,0.00039342,2]
[358596288,1745298647976,-154.59,0.00039384,2]
[358596289,1745298647985,-217.03998963,0.00039489,2]
[358596290,1745298647998,-209.95233236,0.0003962,2]
[358596291,1745298648008,-206.0,0.0003964,2]
[358596292,1745298648018,-500.0,0.00039726,15]
[358596293,1745298648027,-500.0,0.00039726,15]
[358596294,1745298648037,-500.0,0.00039726,15]
[358596295,1745298648047,-500.0,0.00039726,15]
[358596296,1745298648060,-313.88877864,0.00039726,15]
[358596297,1745298648070,-6950.63,0.000398,14]
[358596298,1745298648080,-151.98,0.0003999,2]
[358596299,1745298648089,-407.29850191,0.0004,7]
[358596300,1745298648101,-2221.92777492,0.0004,7]
[358596301,1745298648111,-16643.47354682,0.0004,2]
[358596302,1745298648121,-191.11767372,0.0004,2]
[358596303,1745298648131,-472.08724029,0.0004,2]
[358596304,1745298648141,-943.25480979,0.0004,7]
[358596305,1745298648151,-821.14078908,0.0004,5]
[358596306,1745298648160,-969.35729032,0.0004,20]
[358596307,1745298648169,-379.69481577,0.0004,2]
[358596308,1745298648179,-5077.98055763,0.0004,2]
[358596309,1745298648188,-212.80634053,0.0004,2]
[358596310,1745298648198,-488.82717334,0.0004,2]
[358596311,1745298648208,-404.00574519,0.0004,2]
[358596312,1745298648218,-2280.17024533,0.00040176,15]
[358596313,1745298648227,-154.59,0.0004024,2]
[358596314,1745298648237,-916.0,0.00040347,2]
[358596315,1745298648247,-726.666,0.00040347,2]
[358596316,1745298648256,-2057.0,0.00040347,2]
[358596317,1745298648266,-795.0,0.00040347,2]
[358596318,1745298648276,-547.0,0.00040347,2]
[358596319,1745298648286,-1443.0,0.00040347,2]
[358596320,1745298648295,-1284.0,0.00040347,2]
[358596321,1745298648305,-909.0,0.00040347,2]
[358596322,1745298648314,-3697.342,0.00040347,2]
[358596323,1745298648323,-577.0,0.00040347,2]
[358596324,1745298648333,-152.0,0.00040347,2]
[358596325,1745298648343,-152.0,0.00040347,2]
[358596326,1745298648352,-3024.97731753,0.000404,2]
[358596327,1745298648361,-433.0,0.00040548,2]
[358596328,1745298648371,-1947.58,0.00040876,2]
[358596329,1745298648380,-203.97,0.000409,14]
[358596330,1745298648389,-300.0,0.00040999,10]
[358596331,1745298648398,-15312.46374124,0.00041,5]
[358596332,1745298648407,-21846.41174873,0.00041,5]
[358596333,1745298648416,-750.0,0.00041,2]
[358596334,1745298648426,-162.0,0.00041,14]
[358596335,1745298648437,-206.0,0.0004106,2]
[358596336,1745298648446,-154.59,0.00041096,2]
[358596337,1745298648455,-624.82655745,0.00041096,3]
[358596338,1745298648465,-150.0,0.00041096,2]
[358596339,1745298648474,-2280.17024533,0.00041624,16]
[358596340,1745298648484,-433.0,0.00041918,2]
[358596341,1745298648494,-1337.53335326,0.0004201,2]
[358596342,1745298648504,-500.0,0.0004211,2]
[358596343,1745298648513,-206.0,0.0004247,2]
[358596344,1745298648522,-203.97,0.000426,14]
[358596345,1745298648532,-1300.0,0.000429,15]
[358596346,1745298648542,-151.98,0.00042983,2]
[358596347,1745298648551,-67941.46896703,0.00042993,2]
[358596348,1745298648560,-214.0,0.00043,7]
[358596349,1745298648570,-800.0,0.00043,2]
[358596350,1745298648579,-2280.17024533,0.00043072,17]
[358596351,1745298648589,-1947.58,0.0004314,2]
[358596352,1745298648598,-433.0,0.00043288,2]
[358596353,1745298648607,-916.0,0.00043347,2]
[358596354,1745298648617,-975.082,0.00043347,2]
[358596355,1745298648626,-795.0,0.00043347,2]
[358596356,1745298648635,-547.0,0.00043347,2]
[358596357,1745298648644,-1443.0,0.00043347,2]
[358596358,1745298648654,-1118.279,0.00043347,2]
[358596359,1745298648663,-909.0,0.00043347,2]
[358596360,1745298648672,-577.0,0.00043347,2]
[358596361,1745298648683,-152.0,0.00043347,2]
[358596362,1745298648692,-152.0,0.00043347,2]
[358596363,1745298648702,-5377.0,0.000437,5]
[358596364,1745298648711,-206.0,0.0004388,2]
[358596365,1745298648720,-287.59017537,0.00044,30]
[358596366,1745298648730,-3600.0,0.000444,2]
[358596367,1745298648740,-2280.17024533,0.00044521,18]
[358596368,1745298648749,-433.0,0.00044658,2]
[358596369,1745298648759,-151.0,0.00045,120]
[358596370,1745298648932,-154.00640987,0.00045,60]
[358596371,1745298648942,-155.30449561,0.00045,30]
[358596372,1745298648952,-850.0,0.00045,2]
[358596373,1745298648961,-151.0,0.00045,120]
[358596374,1745298648972,-6950.63,0.00045,60]
[358596375,1745298648981,-844.78623919,0.00045236,30]
[358596376,1745298648991,-206.0,0.0004529,2]
[358596377,1745298649000,-203.97,0.000454,14]
[358596378,1745298649009,-1947.58,0.00045404,2]
[358596379,1745298649018,-2049.39,0.0004546,2]
[358596380,1745298649027,-844.78623919,0.00045499,30]
[358596381,1745298649037,-152.0,0.0004582,3]
[358596382,1745298649046,-2280.17024533,0.00045969,19]
[358596383,1745298649057,-844.78623919,0.00045971,30]
[358596384,1745298649068,-4941.32055294,0.00046,120]
[358596385,1745298649077,-217.03998963,0.00046019,22]
[358596386,1745298649087,-433.0,0.00046027,2]
[358596387,1745298649097,-844.78623919,0.00046142,30]
[358596388,1745298649108,-397.82,0.00046301,2]